bitfinex/quotes_ETHUSD_20251031
["timestamp","ask_amount","ask_price","bid_price","bid_amount"]
[1761879604086,1.39968,3828.6,3828.3,2.61212548]
[1761879604087,16.990488,3828.4,3828.3,2.61212548]
[1761879604413,22.04916335,3828.4,3828.3,2.61212548]
[1761879604618,15.590808,3828.2,3827.9,0.78539274]
[1761879604799,20.10488335,3828.0,3827.9,2.61237682]
[1761879604984,14.50261835,3828.0,3827.9,2.61237682]
[1761879605378,10.47955435,3828.0,3827.9,2.61237682]
[1761879605909,19.81102135,3828.0,3827.9,2.61237682]
[1761879606109,19.54929135,3828.0,3827.9,2.61237682]
[1761879606517,18.14961135,3828.0,3827.9,2.61237682]
[1761879606724,17.69591135,3828.0,3827.9,2.61237682]
[1761879606898,17.93521435,3828.0,3827.9,2.61237682]
[1761879607719,18.38531435,3828.0,3827.9,2.61237682]
[1761879608024,20.55498335,3828.0,3827.9,2.61237682]
[1761879608211,20.65388335,3828.0,3827.9,2.61237682]
[1761879608405,20.55498335,3828.0,3827.9,2.61237682]
[1761879609395,15.721208,3827.9,3827.8,0.001]
[1761879609696,18.02735772,3827.9,3827.8,0.001]
[1761879610289,17.12707735,3827.9,3827.8,2.61346669]
[1761879610488,17.57957735,3827.9,3827.8,0.001]
[1761879610888,17.57957735,3827.9,3827.8,2.61346669]
[1761879611088,22.20986335,3827.9,3827.8,0.001]
[1761879611828,22.20986335,3827.9,3827.8,2.61346669]
[1761879612326,21.72762935,3827.9,3827.8,0.001]
[1761879612704,23.58543999,3827.9,3827.8,0.001]
[1761879613021,8.47686599,3827.9,3827.8,0.001]
[1761879613223,22.20986335,3827.9,3827.8,0.001]
[1761879613601,22.54143307,3827.9,3827.8,0.001]
[1761879614432,22.54143307,3827.9,3827.6,0.001]
[1761879614433,15.590808,3827.7,3827.6,0.001]
[1761879614729,17.32655772,3827.7,3827.6,0.001]
[1761879614895,24.12057489,3827.7,3827.6,0.001]
[1761879615095,24.57307489,3827.7,3827.6,0.001]
[1761879615330,24.98292361,3827.7,3827.6,0.001]
[1761879615722,24.90464461,3827.7,3827.6,0.001]
[1761879619516,25.93410692,3827.7,3827.6,0.001]
[1761879619933,26.03886901,3827.7,3827.6,0.001]
[1761879621939,15.590808,3827.9,3827.7,2.61248308]
[1761879622139,1.39968,3827.8,3827.7,2.61248308]
[1761879622438,16.990488,3827.8,3827.7,2.61248308]
[1761879623040,11.778365,3827.8,3827.7,3.07938308]
[1761879623201,16.990488,3827.8,3827.7,3.07938308]
[1761879623548,15.590808,3827.9,3827.8,2.61246669]
[1761879623745,15.590808,3827.9,3827.8,3.07796669]
[1761879623746,1.39968,3827.9,3827.8,3.07796669]
[1761879623919,6.72659,3827.9,3827.8,3.54486669]
[1761879624241,6.268657,3827.9,3827.8,3.54486669]
[1761879624407,5.016327,3827.9,3827.8,3.54486669]
[1761879624807,5.54353766,3828.5,3828.3,2.61208791]
[1761879625015,0.1304,3828.3,3827.8,0.4655]
[1761879625339,7.806834,3828.0,3827.9,2.61239844]
[1761879625855,1.39968,3827.2,3827.1,0.01]
[1761879626009,24.62239879,3827.2,3827.1,0.01]
[1761879626208,23.36008999,3827.2,3827.1,0.01]
[1761879626631,26.07773821,3827.2,3827.1,0.01]
[1761879627434,26.86656532,3827.2,3827.1,0.01]
[1761879627637,27.20130624,3827.2,3827.1,0.01]
[1761879627816,29.81281778,3827.2,3827.1,0.01]
[1761879628611,29.47807686,3827.2,3827.1,0.01]
[1761879629631,26.86520061,3827.2,3827.1,0.01]
[1761879629848,19.71137151,3827.2,3827.1,0.01]
[1761879630145,20.16917151,3827.2,3827.1,0.01]
[1761879630735,20.06439954,3827.2,3827.1,0.011]
[1761879631225,4.01579154,3827.2,3827.1,0.011]
[1761879631421,15.590808,3827.2,3827.1,0.4779]
[1761879631652,15.590808,3827.4,3827.1,0.011]
[1761879631829,0.4633,3827.2,3827.1,0.011]
[1761879632026,17.453788,3827.2,3827.1,0.011]
[1761879634259,16.990488,3827.2,3827.1,0.4779]
[1761879634957,19.1611768,3827.2,3827.1,0.011]
[1761879635162,3.01865336,3826.8,3826.7,0.001]
[1761879635326,3.01865336,3826.8,3826.3,0.001]
[1761879635327,25.9362753,3826.4,3826.3,0.001]
[1761879635528,3.01906314,3826.2,3826.1,0.011]
[1761879635718,20.40261461,3826.2,3826.1,0.011]
[1761879635919,20.86041461,3826.2,3826.1,0.011]
[1761879636318,5.74149678,3826.2,3826.1,0.011]
[1761879636552,21.33230478,3826.2,3826.1,0.011]
[1761879636734,23.94381632,3826.2,3826.1,0.011]
[1761879637038,23.57674424,3826.2,3826.1,0.011]
[1761879637244,23.9868866,3826.2,3826.1,0.011]
[1761879637443,23.98682042,3826.2,3826.1,0.011]
[1761879638457,23.98682042,3826.2,3825.8,0.001]
[1761879638458,20.00975608,3825.9,3825.8,0.001]
[1761879638661,21.44256317,3825.9,3825.8,0.001]
[1761879638955,21.89766317,3825.9,3825.8,0.001]
[1761879639126,20.0098244,3825.8,3825.1,0.01]
[1761879639318,27.15822072,3825.8,3825.1,0.01]
[1761879639518,28.86940952,3825.8,3825.1,0.01]
[1761879639724,20.01002938,3825.5,3825.1,0.01]
[1761879639922,20.48889285,3825.5,3825.1,0.01]
[1761879640118,20.94669285,3825.5,3825.1,0.01]
[1761879640351,23.55820439,3825.5,3825.1,0.01]
[1761879640556,2.61424239,3825.2,3825.1,0.01]
[1761879640722,26.41515863,3825.2,3825.1,0.01]
[1761879640922,26.87295863,3825.2,3825.1,0.01]
[1761879641122,29.48447017,3825.2,3825.1,0.01]
[1761879641322,29.61558115,3825.2,3825.1,0.01]
[1761879641568,29.61558115,3825.2,3824.1,0.01]
[1761879641855,22.92354877,3824.2,3824.1,0.01]
[1761879643854,23.29061224,3824.2,3824.1,0.01]
[1761879644359,24.10055586,3824.2,3824.1,0.01]
[1761879644558,23.73349239,3824.2,3824.1,0.01]
[1761879645382,14.199799,3824.2,3824.1,0.6676]
[1761879645546,14.199799,3824.2,3824.1,1.1331]
[1761879645547,1.39968,3824.2,3824.1,1.1331]
[1761879645738,16.990488,3824.2,3824.1,3.74809437]
[1761879646865,11.516182,3824.2,3824.1,3.74809437]
[1761879647273,11.025367,3824.2,3824.1,3.74809437]
[1761879647474,9.267322,3824.2,3824.1,3.74809437]
[1761879647765,11.368997,3824.2,3824.1,3.74809437]
[1761879647979,10.967496,3824.2,3824.1,3.74809437]
[1761879648560,1.39968,3824.2,3824.1,3.74909437]
[1761879648877,10.525012,3824.2,3824.1,0.011]
[1761879649077,10.525012,3824.2,3824.0,0.001]
[1761879649078,20.01098637,3824.1,3824.0,0.001]
[1761879649284,24.15221624,3824.1,3824.0,0.001]
[1761879649644,26.76721061,3824.1,3824.0,0.001]
[1761879649875,29.37872215,3824.1,3824.0,0.001]
[1761879650075,26.30592778,3824.1,3824.0,0.001]
[1761879650394,25.93886431,3824.1,3824.0,0.001]
[1761879650592,29.03945868,3824.1,3824.0,0.001]
[1761879650774,29.86001414,3824.1,3824.0,0.001]
[1761879652046,27.24501977,3824.1,3824.0,0.001]
[1761879652448,29.86001414,3824.1,3824.0,0.001]
[1761879652676,29.44969284,3824.1,3824.0,0.001]
[1761879652877,26.83469847,3824.1,3824.0,0.001]
[1761879653178,26.34909847,3824.1,3824.0,0.001]
[1761879653579,29.44969284,3824.1,3824.0,0.001]
[1761879655461,26.34909847,3824.1,3824.0,0.001]
[1761879655698,26.75940835,3824.1,3824.0,0.001]
[1761879656197,29.37440272,3824.1,3824.0,0.001]
[1761879656397,29.86000272,3824.1,3824.0,0.001]
[1761879656574,14.26919472,3824.1,3824.0,0.001]
[1761879656777,29.86000272,3824.1,3824.0,0.001]
[1761879657401,30.22706619,3824.1,3824.0,0.001]
[1761879661404,29.74146619,3824.1,3824.0,0.001]
[1761879661631,29.33123203,3824.1,3824.0,0.001]
[1761879664012,29.74148001,3824.1,3824.0,0.001]
[1761879665720,29.74148001,3824.1,3823.3,0.001]
[1761879665721,0.405504,3823.7,3823.3,0.001]
[1761879665868,25.9971259,3823.4,3823.3,0.001]
[1761879666196,26.73126145,3823.4,3823.3,0.001]
[1761879666416,2.61560996,3823.2,3823.1,0.01]
[1761879666745,19.60678228,3822.2,3822.1,0.4706]
[1761879667172,19.60678228,3822.2,3822.1,0.9525]
[1761879667374,19.60678228,3822.2,3822.1,0.4919]
[1761879667572,19.60678228,3822.2,3822.1,0.01]
[1761879667888,20.03764575,3822.2,3822.1,0.01]
[1761879668098,22.41881017,3822.2,3822.1,0.01]
[1761879668602,22.0517467,3822.2,3822.1,0.01]
[1761879668807,22.46232011,3822.2,3822.1,0.01]
[1761879670698,22.80605025,3822.2,3822.1,0.01]
[1761879670896,22.80605025,3822.2,3822.1,0.4919]
[1761879670897,22.74225025,3822.2,3822.1,0.4919]
[1761879671373,22.80605025,3822.2,3822.1,0.01]
[1761879671805,7.15144225,3822.2,3822.1,0.01]
[1761879671986,22.74225025,3822.2,3822.1,0.4919]
[1761879672187,22.74225025,3822.2,3822.1,0.01]
[1761879672372,22.74225025,3822.2,3822.1,1.1373]
[1761879672575,19.78222583,3822.2,3822.1,1.1373]
[1761879672772,0.41057341,3822.2,3822.1,1.1373]
[1761879672991,20.01735569,3822.2,3822.1,1.1373]
[1761879673186,17.40106141,3822.2,3822.1,1.1373]
[1761879674090,16.990488,3822.2,3822.1,1.1373]
[1761879675795,3.995595,3822.2,3822.1,1.1373]
[1761879675975,16.990488,3822.2,3822.1,1.1373]
[1761879676795,15.590808,3823.5,3822.1,1.51267911]
[1761879676996,0.41032381,3822.9,3822.3,2.61621186]
[1761879677210,13.864647,3822.8,3822.3,2.61621186]
[1761879677387,5.807151,3822.5,3822.4,3.12771895]
[1761879677589,1.39968,3822.7,3822.6,2.6160205]
[1761879677789,4.574076,3822.7,3822.6,2.6421807]
[1761879678018,3.208396,3822.7,3822.6,3.5656205]
[1761879678191,2.262442,3822.7,3822.6,3.5656205]
[1761879679007,2.262442,3822.7,3822.6,0.9496]
[1761879679008,8.646993,3822.7,3822.6,0.9496]
[1761879679214,10.347573,3822.7,3822.6,0.9496]
[1761879679413,7.298673,3822.7,3822.6,3.5656205]
[1761879679717,5.807632,3822.7,3822.6,3.5656205]
[1761879679912,1.39968,3822.7,3822.6,3.5656205]
[1761879680113,5.601631,3822.7,3822.6,3.5656205]
[1761879680321,3.920539,3822.7,3822.6,3.5656205]
[1761879680613,12.225237,3822.7,3822.6,1.57039271]
[1761879680780,12.225237,3822.7,3822.6,0.9496]
[1761879680781,7.359224,3822.7,3822.6,0.9496]
[1761879680982,7.359224,3822.7,3822.6,3.5656205]
[1761879681278,3.973648,3822.7,3822.6,3.5656205]
[1761879682120,1.53008,3822.7,3822.6,3.5656205]
[1761879682281,1.53008,3822.7,3822.6,4.18379788]
[1761879684620,1.53008,3822.7,3822.6,4.18479788]
[1761879685790,11.401239,3822.7,3822.6,4.18479788]
[1761879686305,11.401239,3822.7,3822.6,3.5666205]
[1761879686509,7.32499,3822.7,3822.6,3.5666205]
[1761879686704,1.53008,3822.7,3822.6,3.5666205]
[1761879686912,6.02605,3822.7,3822.6,3.5666205]
[1761879687817,6.876629,3822.7,3822.6,3.5666205]
[1761879688210,1.53008,3822.7,3822.6,3.5666205]
[1761879688422,0.1304,3822.7,3822.6,4.18489808]
[1761879688814,0.002,3823.1,3823.0,2.61574679]
[1761879689016,0.002,3823.1,3823.0,3.54074679]
[1761879689334,0.1324,3823.1,3823.0,3.54074679]
[1761879689537,0.1324,3823.1,3823.0,4.18256274]
[1761879690141,0.002,3823.1,3823.0,4.18256274]
[1761879691334,0.002,3823.1,3823.0,4.58806674]
[1761879691641,0.002,3823.1,3823.0,4.71846674]
[1761879692519,0.002,3823.1,3823.0,4.58806674]
[1761879695233,0.002,3823.9,3823.8,2.61519953]
[1761879695551,0.002,3823.9,3823.8,3.59644888]
[1761879695744,0.002,3823.9,3823.8,4.06324888]
[1761879695921,0.002,3823.9,3823.8,4.08940087]
[1761879696243,0.002,3823.9,3823.8,4.06324888]
[1761879696746,0.002,3823.9,3823.8,4.08940087]
[1761879696961,0.002,3823.9,3823.8,3.54019953]
[1761879697960,0.002,3823.9,3823.8,3.56635152]
[1761879702545,0.002,3823.9,3823.8,3.54019953]
[1761879702878,0.002,3823.9,3823.4,0.1866]
[1761879702879,0.0612,3823.9,3823.4,2.80203349]
[1761879703051,15.590808,3823.7,3823.5,0.001]
[1761879703239,15.590808,3823.7,3823.6,2.61533633]
[1761879703443,15.590808,3823.8,3823.6,2.61533633]
[1761879703666,15.590808,3823.8,3823.5,0.001]
[1761879703667,15.721208,3823.6,3823.5,0.001]
[1761879703852,15.726008,3823.6,3823.5,0.001]
[1761879704053,16.216208,3823.6,3823.5,0.001]
[1761879704566,17.615888,3823.6,3823.5,0.001]
[1761879704948,17.125688,3823.6,3823.5,0.001]
[1761879705144,17.120888,3823.6,3823.5,0.001]
[1761879705350,17.180088,3823.6,3823.5,0.001]
[1761879707346,18.9590268,3823.6,3823.5,2.61640473]
[1761879707746,17.180088,3823.6,3823.5,2.61640473]
[1761879708126,17.180088,3823.6,3823.5,0.001]
[1761879708127,10.603612,3823.6,3823.5,0.001]
[1761879709078,1.58928,3823.6,3823.5,0.001]
[1761879709379,18.00971814,3823.6,3823.5,0.001]
[1761879709546,19.82302995,3823.6,3823.5,0.001]
[1761879717378,19.47929981,3823.6,3823.5,0.001]
[1761879719381,18.99339981,3823.6,3823.5,0.001]
[1761879719587,9.395775,3823.6,3823.5,0.001]
[1761879719781,9.460575,3823.6,3823.5,0.001]
[1761879720216,17.185688,3823.6,3823.5,0.001]
[1761879720587,17.185688,3823.6,3823.5,2.61640473]
[1761879720788,17.185688,3823.6,3822.1,0.01]
[1761879720789,15.590808,3823.1,3822.1,0.01]
[1761879721088,15.590808,3823.1,3820.8,2.61724916]
[1761879721089,18.20735102,3821.9,3820.8,2.61724916]
[1761879721288,20.12732503,3821.2,3820.7,0.1903]
[1761879721488,20.2572985,3821.2,3820.8,2.61721534]
[1761879721734,16.990488,3821.2,3821.1,0.4636]
[1761879722335,8.217068,3821.8,3821.5,2.61670923]
[1761879722533,0.131,3822.0,3821.3,2.6168628]
[1761879722534,4.784273,3821.4,3821.3,2.6168628]
[1761879722736,4.429273,3821.4,3821.3,3.5578628]
[1761879722891,4.429273,3821.4,3821.3,0.4536]
[1761879723324,16.990488,3821.4,3821.3,0.4536]
[1761879723600,16.990488,3821.4,3821.1,0.2003]
[1761879723601,15.590808,3821.3,3821.2,2.61697895]
[1761879723806,16.990488,3821.3,3821.2,2.61697895]
[1761879724006,16.990488,3821.3,3821.2,3.07057895]
[1761879724200,1.39968,3821.3,3821.2,3.07057895]
[1761879724499,1.39968,3821.3,3821.2,3.55797895]
[1761879725006,1.39968,3821.3,3821.2,0.4536]
[1761879725201,1.46448,3821.3,3821.1,0.01]
[1761879725391,15.595608,3821.2,3821.1,0.01]
[1761879725721,19.34936875,3821.2,3821.1,0.01]
[1761879726321,16.995288,3821.2,3821.1,0.01]
[1761879726736,16.990488,3821.2,3821.1,0.01]
[1761879727134,16.990488,3821.2,3821.1,2.62704744]
[1761879727312,16.990488,3821.2,3821.1,3.27094744]
[1761879727505,15.590808,3821.2,3821.1,3.75834744]
[1761879727703,16.990488,3821.3,3821.2,2.61697895]
[1761879728104,16.990488,3821.3,3821.2,0.4536]
[1761879728335,16.990488,3821.3,3821.2,3.07057895]
[1761879728721,16.990488,3821.3,3821.2,0.4536]
[1761879729040,15.590808,3821.2,3821.1,0.01]
[1761879729244,15.590808,3821.2,3821.1,2.62704744]
[1761879730420,16.990488,3821.2,3821.1,2.62704744]
[1761879730816,16.990488,3821.2,3821.1,3.08064744]
[1761879731021,16.990488,3821.2,3821.1,3.75834744]
[1761879731338,1.39968,3821.2,3821.1,3.75834744]
[1761879731538,16.990488,3821.2,3821.1,3.75834744]
[1761879732409,6.49,3821.9,3821.7,2.61663657]
[1761879732410,6.359294,3821.8,3821.7,2.61663657]
[1761879732635,6.080258,3821.6,3821.5,2.61670736]
[1761879732832,2.121986,3821.7,3821.6,3.10410504]
[1761879733025,5.667278,3821.8,3821.7,2.61663657]
[1761879733221,7.066958,3821.8,3821.7,3.10403657]
[1761879733531,8.313993,3821.8,3821.7,3.55763657]
[1761879733734,4.584686,3821.8,3821.7,3.55763657]
[1761879734119,5.816266,3821.8,3821.7,3.55763657]
[1761879734310,5.300516,3821.8,3821.7,3.55763657]
[1761879735433,4.133876,3821.8,3821.7,3.55763657]
[1761879735837,5.128784,3821.8,3821.7,3.07023657]
[1761879736438,4.629212,3821.8,3821.7,3.07023657]
[1761879736827,7.121979,3821.8,3821.7,3.07023657]
[1761879737215,7.121979,3821.8,3821.4,0.4874]
[1761879737216,1.53008,3821.7,3821.4,0.4874]
[1761879737547,3.78117,3821.6,3821.5,2.61677351]
[1761879737735,1.39968,3821.8,3821.6,2.61665515]
[1761879737915,12.608844,3821.7,3821.6,2.61665515]
[1761879738714,16.990488,3821.7,3821.6,2.61665515]
[1761879739234,17.464988,3821.7,3821.1,0.6722]
[1761879739414,0.1304,3821.4,3821.1,0.01]
[1761879739613,16.061308,3821.2,3821.1,2.62704744]
[1761879740051,15.590808,3821.2,3821.1,2.62804744]
[1761879740245,1.39968,3821.5,3821.1,3.10854744]
[1761879740449,16.990488,3821.4,3821.3,2.61691047]
[1761879740611,5.748099,3821.7,3821.6,2.61670504]
[1761879740813,2.451519,3821.7,3821.6,3.09720504]
[1761879741014,13.107591,3821.5,3821.3,2.61691047]
[1761879741256,15.590808,3821.6,3821.5,2.61677351]
[1761879741459,15.590808,3821.7,3821.5,2.61677351]
[1761879741610,15.721208,3821.5,3821.4,2.61683292]
[1761879741811,0.86238747,3821.6,3821.2,0.4849]
[1761879742022,7.975861,3821.5,3821.4,2.61684199]
[1761879742223,4.709532,3821.5,3821.4,2.61684199]
[1761879742523,4.447363,3821.5,3821.4,2.61684199]
[1761879742718,3.722074,3821.5,3821.4,3.09734199]
[1761879743046,4.65147947,3821.6,3821.5,2.61677351]
[1761879743220,4.65147947,3821.6,3821.5,3.09727351]
[1761879743623,8.722086,3821.7,3821.6,2.61670504]
[1761879743857,2.204282,3821.7,3821.6,3.12777209]
[1761879744056,7.183623,3822.0,3821.9,2.61649964]
[1761879744239,4.569213,3822.0,3821.9,2.61649964]
[1761879744960,11.427366,3822.0,3821.9,2.61649964]
[1761879745456,7.922482,3822.0,3821.9,2.61649964]
[1761879745955,8.329927,3822.0,3821.9,2.61649964]
[1761879746161,0.002,3822.1,3822.0,2.61643118]
[1761879746452,8.547382,3822.1,3822.0,2.61643118]
[1761879746844,8.547382,3822.1,3821.7,0.02616636]
[1761879746845,15.590808,3821.9,3821.7,0.02616636]
[1761879747026,14.999932,3822.0,3821.4,2.61683044]
[1761879747226,3.725503,3821.6,3821.5,2.61677351]
[1761879747464,15.590808,3821.9,3821.8,2.6165681]
[1761879747622,11.3397,3822.0,3821.9,2.61649964]
[1761879747827,5.923843,3822.0,3821.9,2.61649964]
[1761879748048,5.666438,3822.0,3821.9,2.61649964]
[1761879748368,13.574038,3821.8,3821.1,0.011]
[1761879748538,0.4557,3821.2,3821.1,0.011]
[1761879748738,17.446188,3821.2,3821.1,0.011]
[1761879748943,2.27069673,3821.2,3821.1,0.011]
[1761879749151,17.86150473,3821.2,3821.1,0.011]
[1761879749553,19.6569952,3821.2,3821.1,0.011]
[1761879749737,19.7503952,3821.2,3821.1,0.011]
[1761879750462,22.36737415,3821.2,3821.1,0.011]
[1761879750963,8.258842,3821.2,3821.1,0.011]
[1761879751165,17.446188,3821.2,3821.1,0.011]
[1761879751665,17.446188,3821.2,3821.1,2.62804744]
[1761879751832,0.0934,3821.7,3821.1,0.4915]
[1761879751833,1.39968,3821.6,3821.1,0.4915]
[1761879752032,15.590808,3821.4,3821.2,2.61692282]
[1761879752265,15.590808,3821.3,3821.2,2.61692282]
[1761879752472,15.590808,3821.3,3821.2,2.61697895]
[1761879752638,15.590808,3821.3,3821.2,3.09747895]
[1761879753188,1.39968,3821.4,3821.3,2.61691047]
[1761879753474,16.990488,3821.4,3821.3,2.61691047]
[1761879754251,6.457159,3821.4,3821.3,3.09741047]
[1761879754450,1.39968,3821.4,3821.3,3.09741047]
[1761879754769,1.39968,3821.4,3821.3,3.58231047]
[1761879754970,0.60189408,3822.1,3821.3,3.58231047]
[1761879754971,0.41257608,3822.1,3821.7,2.61663657]
[1761879755130,2.286113,3822.1,3822.0,3.09693118]
[1761879755336,0.002,3822.1,3822.0,3.09693118]
[1761879755555,0.002,3822.1,3822.0,3.58183118]
[1761879756167,0.002,3822.1,3822.0,4.20167017]
[1761879757204,0.002,3822.1,3822.0,4.22783448]
[1761879757558,0.002,3822.1,3822.0,4.20167017]
[1761879757760,0.002,3822.1,3822.0,3.58183118]
[1761879762288,0.002,3822.1,3822.0,3.09693118]
[1761879762488,3.190605,3822.1,3822.0,2.61643118]
[1761879762698,3.190605,3822.1,3821.8,2.61655867]
[1761879762908,2.337913,3822.0,3821.9,2.61649964]
[1761879763396,7.608614,3822.1,3822.0,2.61643118]
[1761879763595,1.40168,3822.1,3822.0,3.09693118]
[1761879763796,0.002,3822.1,3822.0,3.60799549]
[1761879763997,0.002,3822.1,3822.0,3.58183118]
[1761879764166,11.523801,3822.1,3822.0,2.61643118]
[1761879764366,13.363198,3822.0,3821.9,2.61649964]
[1761879764576,7.774191,3822.0,3821.9,2.61649964]
[1761879764780,7.779091,3822.0,3821.9,2.61649964]
[1761879765194,11.26593,3821.9,3821.5,2.61677351]
[1761879765394,4.063767,3821.8,3821.7,2.6165705]
[1761879765578,3.801616,3821.8,3821.7,2.6165705]
[1761879766388,7.977051,3821.8,3821.7,2.6165705]
[1761879766905,6.038717,3821.8,3821.7,2.6165705]
[1761879767109,4.072206,3821.8,3821.7,2.6165705]
[1761879767310,2.10876,3821.8,3821.7,2.6165705]
[1761879767505,2.099267,3821.8,3821.7,2.6165705]
[1761879767711,2.268491,3821.8,3821.7,2.6165705]
[1761879768020,4.58993,3821.8,3821.7,2.6165705]
[1761879768440,4.58993,3821.8,3821.4,0.001]
[1761879768441,12.712658,3821.7,3821.4,0.001]
[1761879768718,17.038688,3821.5,3821.4,0.001]
[1761879769236,17.534688,3821.5,3821.4,0.001]
[1761879769385,3.02248295,3821.2,3821.1,0.011]
[1761879769588,17.47565373,3821.2,3821.1,0.011]
[1761879769806,20.90837101,3821.2,3821.1,0.011]
[1761879770221,17.923992,3821.2,3821.1,0.011]
[1761879770910,17.03666208,3821.2,3821.1,0.011]
[1761879771208,18.6586063,3821.2,3821.1,0.011]
[1761879771386,19.1331063,3821.2,3821.1,0.011]
[1761879771587,17.03666208,3821.2,3821.1,0.011]
[1761879771788,15.644308,3821.2,3821.1,0.011]
[1761879772019,15.644308,3821.2,3821.1,2.62804744]
[1761879772223,15.644308,3821.2,3821.1,0.011]
[1761879772423,16.118808,3821.2,3821.1,0.011]
[1761879772918,15.644308,3821.2,3821.1,0.011]
[1761879773936,15.590808,3821.2,3821.1,2.62804744]
[1761879774123,1.39968,3821.4,3821.1,0.011]
[1761879774435,15.590808,3821.2,3821.1,0.011]
[1761879774639,2.22973,3821.3,3821.1,2.82062938]
[1761879774802,3.74764,3821.4,3821.1,3.31052938]
[1761879775003,15.590808,3821.4,3821.1,3.31052938]
[1761879775322,1.39968,3821.4,3821.1,3.31052938]
[1761879775528,13.041268,3821.3,3821.2,2.61696071]
[1761879775840,12.130293,3821.3,3821.2,2.61696071]
[1761879776023,15.590808,3821.5,3821.2,2.61696071]
[1761879776230,11.787431,3821.3,3821.2,2.61696071]
[1761879776602,15.590808,3821.7,3821.2,2.61696071]
[1761879776808,14.992482,3821.5,3821.1,0.2036]
[1761879777010,11.338422,3821.3,3821.1,0.2036]
[1761879777216,15.590808,3821.6,3821.2,2.61697231]
[1761879777454,10.778785,3821.4,3821.2,2.61697231]
[1761879777636,10.778785,3821.4,3821.1,0.2036]
[1761879777637,0.10086173,3821.3,3821.1,0.011]
[1761879777948,15.669508,3821.2,3821.1,0.011]
[1761879779619,15.669508,3821.2,3821.1,2.62804744]
[1761879779820,0.002,3821.3,3821.2,2.61697895]
[1761879780027,4.15957173,3821.3,3821.2,0.4899]
[1761879780243,2.22607173,3821.3,3821.2,0.4899]
[1761879780448,2.22607173,3821.3,3821.1,2.8206436]
[1761879780449,2.558166,3821.2,3821.1,2.6280436]
[1761879780958,2.558166,3821.2,3821.1,3.1179436]
[1761879781246,0.1304,3821.2,3821.1,3.3105436]
[1761879781447,0.1304,3821.2,3821.1,3.7844436]
[1761879781750,0.1304,3821.2,3821.1,3.81061407]
[1761879782064,0.1304,3821.2,3821.1,4.45339242]
[1761879782233,0.1304,3821.2,3821.1,4.42722195]
[1761879785082,0.002,3821.7,3821.4,2.61679895]
[1761879785083,0.1324,3821.7,3821.4,2.61679895]
[1761879785229,0.1324,3821.7,3821.6,0.4899]
[1761879785571,0.1324,3821.7,3821.6,3.44344199]
[1761879785572,0.002,3821.7,3821.6,3.44344199]
[1761879785722,0.002,3821.7,3821.6,3.91734199]
[1761879786477,0.36740006,3823.2,3822.0,2.61643118]
[1761879786478,0.02616173,3823.2,3822.0,2.61643118]
[1761879786633,0.1304,3822.3,3822.0,3.13249549]
[1761879786833,0.1304,3822.3,3822.0,3.60639549]
[1761879787029,0.1304,3822.3,3822.0,4.22868758]
[1761879787231,0.02816173,3823.6,3822.9,2.61577676]
[1761879787232,15.590808,3823.5,3822.9,2.61577676]
[1761879787451,5.475636,3823.1,3823.0,2.61574679]
[1761879787642,16.990488,3823.5,3823.4,2.61543496]
[1761879787850,18.1274748,3823.5,3823.4,2.61543496]
[1761879788249,19.5271548,3823.5,3823.4,2.61543496]
[1761879788957,15.590808,3823.3,3823.1,2.61566645]
[1761879789156,0.4702,3823.3,3823.2,2.61560996]
[1761879789349,15.590808,3823.5,3823.4,2.61547313]
[1761879789656,18.00714978,3823.5,3823.4,2.61547313]
[1761879789858,18.47344978,3823.5,3823.4,2.61547313]
[1761879790059,0.1304,3823.4,3823.3,2.61553399]
[1761879790262,15.592808,3823.6,3823.5,2.61540473]
[1761879790565,17.90999796,3823.6,3823.5,2.61540473]
[1761879790730,17.98469796,3823.6,3823.5,2.61540473]
[1761879790931,2.39388996,3823.6,3823.5,2.61540473]
[1761879791132,15.667508,3823.6,3823.5,2.61540473]
[1761879791533,1.39968,3823.5,3823.4,2.61546026]
[1761879791757,16.990488,3823.5,3822.6,0.4739]
[1761879792061,0.07,3823.1,3822.3,0.4739]
[1761879792264,0.07,3823.1,3822.4,0.4739]
[1761879792465,7.464564,3823.0,3822.6,2.61601348]
[1761879792767,5.663003,3823.0,3822.5,2.61603087]
[1761879792931,2.976416,3822.8,3821.9,0.6665]
[1761879793138,7.58722457,3823.0,3822.9,2.61581521]
[1761879793336,3.716301,3823.0,3822.9,2.61581521]
[1761879793569,9.452378,3822.9,3822.8,2.61588147]
[1761879793871,7.028819,3822.9,3822.8,2.61588147]
[1761879794037,4.177613,3823.0,3822.9,2.61581521]
[1761879794237,6.659016,3823.0,3822.9,2.61581521]
[1761879794438,6.733716,3823.0,3822.9,2.61581521]
[1761879794733,8.1523,3822.9,3822.3,2.61622262]
[1761879794933,8.1523,3822.9,3821.2,0.4739]
[1761879794934,1.39968,3822.2,3821.2,0.4739]
[1761879795152,0.3347,3822.4,3821.1,0.011]
[1761879795153,15.590808,3821.9,3821.1,0.011]
[1761879795363,0.02616173,3821.8,3821.5,2.61673222]
[1761879795554,1.39968,3821.8,3821.5,2.61673222]
[1761879795753,0.0747,3821.6,3821.1,0.011]
[1761879795929,0.02616173,3821.7,3821.1,0.2036]
[1761879796133,0.02616173,3822.2,3821.6,3.10656411]
[1761879796364,0.02616173,3822.2,3821.9,2.61649964]
[1761879796365,1.39968,3822.0,3821.9,2.61649964]
[1761879796543,0.02616173,3822.2,3822.1,2.61633143]
[1761879796544,13.19763,3822.2,3822.1,2.61633143]
[1761879796868,7.848077,3822.2,3822.1,2.61633143]
[1761879797038,4.282542,3822.6,3822.3,2.61616727]
[1761879797237,0.131,3822.7,3822.4,2.61615738]
[1761879797238,8.40091973,3822.5,3822.4,2.61615738]
[1761879797564,1.39968,3822.5,3822.4,2.61615738]
[1761879797750,12.455286,3822.5,3822.4,2.61615738]